bitfinex-derivatives/quotes_BTCF0:USTF0_20241223
["timestamp","ask_amount","ask_price","bid_price","bid_amount"]
[1734965462188,0.3638,94050.0,94034.0,0.19036119]
[1734965462488,0.053225,94048.0,94039.0,0.05323]
[1734965462793,0.3608,94041.0,94034.0,0.19036119]
[1734965463097,0.05323,94039.0,94034.0,0.19036119]
[1734965463294,0.05323,94039.0,94032.0,0.053234]
[1734965463789,0.36136001,94041.0,94030.0,0.20177688]
[1734965463987,0.3608,94041.0,94040.0,0.05323]
[1734965464394,0.001,94048.0,94040.0,0.05323]
[1734965464583,0.053216,94064.0,94051.0,0.053223]
[1734965464793,0.053217,94062.0,94051.0,0.053223]
[1734965465305,0.3608,94077.0,94051.0,0.053223]
[1734965465496,0.3608,94077.0,94069.0,0.053213]
[1734965465685,0.053207,94081.0,94067.0,0.20177688]
[1734965465885,0.54556632,94088.0,94071.0,0.3608]
[1734965466095,0.54556632,94088.0,94078.0,0.053208]
[1734965466299,0.36136001,94088.0,94078.0,0.053208]
[1734965466483,0.3608,94088.0,94078.0,0.25498488]
[1734965466684,0.3608,94079.0,94060.0,0.20177688]
[1734965466890,0.05322,94057.0,94048.0,0.00159479]
[1734965467390,0.36140001,94061.0,94048.0,0.00159479]
[1734965467583,0.3608,94061.0,94055.0,0.053221]
[1734965467784,0.3608,94061.0,94058.0,0.053219]
[1734965468591,0.3608,94061.0,94052.0,0.3608]
[1734965468789,0.3648,94061.0,94058.0,0.001]
[1734965469586,0.3648,94061.0,94059.0,0.053219]
[1734965470296,0.3678,94061.0,94058.0,0.001]
[1734965470491,0.053219,94059.0,94058.0,0.001]
[1734965470995,0.053233,94034.0,94020.0,0.20185571]
[1734965471197,0.414033,94034.0,94024.0,0.053238]
[1734965471496,0.414033,94034.0,94020.0,0.20185571]
[1734965471697,0.414033,94034.0,94020.0,7.883e-05]
[1734965471889,0.714033,94034.0,94020.0,7.883e-05]
[1734965472088,0.41404,94021.0,94020.0,7.883e-05]
[1734965472696,0.053256,93994.0,93986.0,0.25441412]
[1734965473099,0.3608,94006.0,94005.0,0.053249]
[1734965473899,0.36091147,94006.0,94005.0,0.053249]
[1734965474201,0.00011147,94006.0,94005.0,0.414049]
[1734965474385,0.00011147,94006.0,94005.0,0.416049]
[1734965474694,0.00011147,94006.0,94005.0,0.055249]
[1734965475488,0.00011147,94006.0,94005.0,0.058249]
[1734965475801,0.00011147,94006.0,94005.0,0.056249]
[1734965476097,0.00011147,94006.0,94005.0,1.475249]
[1734965476296,0.00011147,94006.0,94005.0,1.422]
[1734965476498,0.00011147,94006.0,93978.0,0.3608]
[1734965476694,0.053258,93990.0,93978.0,0.3608]
[1734965476994,0.3608,93992.0,93981.0,0.053262]
[1734965476995,0.36136001,93992.0,93981.0,0.053262]
[1734965477199,0.3608,93992.0,93981.0,0.053262]
[1734965477400,0.3608,93992.0,93978.0,0.3608]
[1734965477699,0.3608,93992.0,93970.0,0.61649412]
[1734965477700,0.053266,93976.0,93970.0,0.36208]
[1734965477888,0.053267,93975.0,93965.0,0.053272]
[1734965478085,0.414072,93966.0,93960.0,0.00012469]
[1734965478309,0.053274,93962.0,93960.0,0.00012469]
[1734965478691,0.3608,93966.0,93961.0,1.42]
[1734965478895,0.3608,93966.0,93958.0,0.00159631]
[1734965478896,0.3608,93962.0,93958.0,0.00159631]
[1734965479104,0.3608,93962.0,93947.0,0.00128]
[1734965479105,0.053282,93948.0,93947.0,0.00128]
[1734965479289,0.414082,93948.0,93947.0,0.00128]
[1734965479492,0.3618,93962.0,93934.0,1.42]
[1734965479793,0.3618,93962.0,93961.0,0.056274]
[1734965479989,0.41518165,93962.0,93961.0,0.003]
[1734965480594,0.41618165,93962.0,93950.0,0.05328]
[1734965481090,0.41518165,93962.0,93958.0,0.003]
[1734965481514,0.053289,93936.0,93934.0,1.423]
[1734965481694,0.3608,93935.0,93934.0,1.423]
[1734965481896,0.36092339,93935.0,93934.0,1.423]
[1734965482091,0.3608,93964.0,93934.0,1.7808]
[1734965482301,0.3608,93964.0,93961.0,0.001]
[1734965482703,0.053273,93963.0,93961.0,0.001]
[1734965482998,0.053275,93960.0,93958.0,0.002]
[1734965483201,0.0001146,93959.0,93958.0,0.002]
[1734965483702,0.0533906,93959.0,93934.0,1.432]
[1734965483889,0.0533906,93959.0,93950.0,0.05328]
[1734965484292,0.0593906,93959.0,93958.0,0.001]
[1734965484903,0.0553906,93959.0,93958.0,1.42]
[1734965486299,0.0553906,93959.0,93925.0,0.00132]
[1734965486300,0.3553906,93959.0,93925.0,0.00132]
[1734965486601,0.3608,93939.0,93923.0,0.3608]
[1734965486804,7.882e-05,93938.0,93937.0,0.053288]
[1734965487000,7.882e-05,93938.0,93935.0,0.053289]
[1734965487698,7.882e-05,93938.0,93937.0,0.053288]
[1734965487900,7.882e-05,93938.0,93933.0,1.42132]
[1734965488098,7.882e-05,93938.0,93933.0,1.42]
[1734965488302,7.882e-05,93938.0,93936.0,0.053288]
[1734965488804,7.882e-05,93938.0,93937.0,0.004]
[1734965489203,7.882e-05,93938.0,93937.0,0.057288]
[1734965489504,7.882e-05,93938.0,93937.0,0.418088]
[1734965489896,0.3608,93946.0,93937.0,0.004]
[1734965490295,0.3608,93946.0,93938.0,1.473287]
[1734965490503,0.3608,93946.0,93945.0,0.053283]
[1734965490803,0.053281,93949.0,93938.0,1.42136]
[1734965491003,0.053281,93949.0,93938.0,1.42]
[1734965491202,0.3608,93940.0,93938.0,1.42]
[1734965491401,0.053287,93938.0,93937.0,0.003]
[1734965491597,0.053287,93938.0,93936.0,0.003]
[1734965491794,0.053292,93931.0,93922.0,1.42]
[1734965491997,0.3608,93927.0,93922.0,1.42]
[1734965492193,0.053296,93924.0,93922.0,1.42]
[1734965493604,0.053296,93924.0,93922.0,0.001]
[1734965493807,0.353296,93924.0,93922.0,1e-06]
[1734965494400,0.053296,93924.0,93922.0,1e-06]
[1734965495207,0.36144,93927.0,93913.0,0.053301]
[1734965495403,0.3608,93914.0,93913.0,0.053301]
[1734965496498,0.36136001,93927.0,93911.0,0.3608]
[1734965496699,0.053292,93930.0,93926.0,1.42]
[1734965497002,0.41464801,93937.0,93926.0,1.42]
[1734965497200,0.41464801,93937.0,93927.0,0.20177688]
[1734965497401,0.414088,93937.0,93927.0,0.20177688]
[1734965497595,0.3608,93937.0,93929.0,0.053292]
[1734965497794,0.3608,93937.0,93931.0,0.053291]
[1734965498098,0.053292,93931.0,93927.0,0.20177688]
[1734965498299,0.36240001,93937.0,93927.0,0.20477688]
[1734965498501,0.415088,93937.0,93927.0,0.20477688]
[1734965498704,0.414088,93937.0,93929.0,0.003]
[1734965498917,0.415088,93937.0,93931.0,0.002]
[1734965499130,0.3618,93937.0,93932.0,0.053291]
[1734965499408,0.05329,93933.0,93931.0,0.002]
[1734965499910,0.053292,93930.0,93929.0,0.003]
[1734965500310,0.053293,93928.0,93927.0,0.009]
[1734965500507,0.414093,93928.0,93927.0,0.009]
[1734965501011,0.414093,93928.0,93927.0,0.002]
[1734965501596,0.414093,93928.0,93927.0,0.003]
[1734965501597,0.719093,93928.0,93927.0,0.003]
[1734965502003,0.053301,93915.0,93911.0,1.42]
[1734965502315,0.053297,93922.0,93911.0,1.42]
[1734965502617,0.36736001,93928.0,93911.0,1.42]
[1734965502915,0.0533,93916.0,93913.0,0.053301]
[1734965503219,0.053302,93913.0,93911.0,0.00128]
[1734965503398,0.053303,93912.0,93910.0,0.00012949]
[1734965503705,0.3608,93911.0,93910.0,0.00012949]
[1734965503905,0.053308,93901.0,93900.0,0.1]
[1734965504205,0.414108,93901.0,93900.0,0.1]
[1734965505206,0.053319,93882.0,93881.0,0.00128]
[1734965505398,0.053322,93877.0,93875.0,0.01050371]
[1734965505600,0.053326,93870.0,93863.0,0.30774412]
[1734965505998,0.36144,93874.0,93863.0,0.30774412]
[1734965506206,0.3608,93874.0,93864.0,0.053329]
[1734965506409,0.3608,93874.0,93863.0,0.0105704]
[1734965506608,0.36152487,93882.0,93872.0,0.053325]
[1734965506805,0.36088487,93882.0,93872.0,0.053325]
[1734965507106,0.05332,93881.0,93867.0,0.053328]
[1734965507309,0.36152487,93882.0,93868.0,0.053327]
[1734965507607,0.36152487,93882.0,93864.0,0.006]
[1734965507608,0.3608,93873.0,93864.0,0.006]
[1734965507809,0.053329,93866.0,93864.0,0.006]
[1734965508015,0.053329,93864.0,93863.0,0.002]
[1734965508714,0.053329,93864.0,93863.0,1.422]
[1734965509110,0.053329,93864.0,93863.0,1.42]
[1734965509301,0.053329,93864.0,93863.0,0.002]
[1734965509907,0.0534347,93864.0,93863.0,0.002]
[1734965510118,0.0544347,93864.0,93863.0,0.008]
[1734965511300,0.0011057,93864.0,93863.0,0.008]
[1734965511504,0.0011057,93864.0,93863.0,1.428]
[1734965511710,0.0544347,93864.0,93863.0,1.428]
[1734965512116,0.4152347,93864.0,93863.0,0.008]
[1734965512506,0.4142347,93864.0,93863.0,0.002]
[1734965512812,0.4152347,93864.0,93863.0,0.008]
[1734965513009,0.4152347,93864.0,93863.0,0.006]
[1734965513205,0.4142347,93864.0,93863.0,0.003]
[1734965514002,0.0534347,93864.0,93863.0,0.003]
[1734965514615,0.0534347,93864.0,93863.0,0.002]
[1734965514910,0.4142347,93864.0,93863.0,0.002]
[1734965519616,0.7142347,93864.0,93846.0,0.00170285]
[1734965519819,0.053345,93837.0,93835.0,0.00013356]
[1734965520117,0.00010596,93836.0,93835.0,0.05347956]
[1734965520620,0.05345096,93836.0,93835.0,0.00013356]
[1734965520821,0.00010596,93836.0,93835.0,0.00013356]
[1734965521322,0.00010596,93836.0,93835.0,0.30043356]
[1734965521526,0.00010596,93836.0,93835.0,1.72043356]
[1734965522023,0.00010596,93836.0,93835.0,1.86433356]
[1734965522218,0.00010596,93836.0,93835.0,1.91767956]
[1734965522425,0.001,93836.0,93835.0,1.92367956]
[1734965522721,0.3608,93905.0,93871.0,0.053325]
[1734965522925,0.36136001,93905.0,93882.0,0.053319]
[1734965523109,0.36136001,93905.0,93882.0,0.414119]
[1734965523310,0.36136001,93905.0,93882.0,1.834119]
[1734965523523,0.00165807,93883.0,93882.0,1.834119]
[1734965523924,0.00165807,93883.0,93882.0,1.473319]
[1734965524517,0.51524381,93923.0,93882.0,1.98163015]
[1734965524819,0.15500382,93923.0,93922.0,0.053296]
[1734965525019,0.15444381,93923.0,93922.0,0.414096]
[1734965525418,0.36136001,93939.0,93922.0,0.414096]
[1734965525419,0.00056001,93939.0,93938.0,0.053287]
[1734965525619,0.60932344,93966.0,93939.0,0.053287]
[1734965525920,0.60932344,93966.0,93964.0,0.053272]
[1734965525921,0.03173798,93966.0,93964.0,0.053272]
[1734965526224,0.27958887,93974.0,93973.0,0.053268]
[1734965526427,0.04448887,93974.0,93973.0,0.414068]
[1734965526724,0.01084186,94017.0,93983.0,0.053262]
[1734965526925,0.26677375,94009.0,94003.0,0.05325]
[1734965527118,0.26677375,94009.0,94004.0,0.3608]
[1734965527427,0.01084186,94017.0,94004.0,0.3608]
[1734965527428,0.01084186,94017.0,94015.0,0.053243]
[1734965527618,0.3608,94039.0,94016.0,0.37676]
[1734965527924,0.3608,94039.0,94029.0,0.053235]
[1734965528120,0.3608,94039.0,94025.0,0.3608]
[1734965528526,0.3608,94039.0,94026.0,0.053237]
[1734965528728,0.3608,94039.0,94030.0,1.42]
[1734965528911,0.1497,94046.0,94034.0,0.3608]
[1734965529525,0.28689538,94050.0,94038.0,0.31437806]
[1734965529727,0.05323,94039.0,94038.0,0.31437806]
[1734965529927,0.05623,94039.0,94038.0,0.31437806]
[1734965530113,0.003,94039.0,94034.0,0.003]
[1734965530420,0.003,94039.0,94000.0,0.20122449]
[1734965530629,0.15766482,94005.0,93996.0,0.40349712]
[1734965531224,0.05325,94004.0,94002.0,0.25057066]
[1734965531617,0.0511682,94005.0,94002.0,0.25057066]
[1734965532318,0.1044172,94005.0,94002.0,0.25057066]
[1734965532524,0.1044172,94005.0,93987.0,0.053259]
[1734965532525,0.053251,94003.0,93987.0,0.053259]
[1734965532725,0.3608,93993.0,93983.0,0.3608]
[1734965533030,0.053241,94020.0,93990.0,0.3608]
[1734965533221,0.053245,94012.0,93990.0,0.414057]
[1734965533531,0.002,94005.0,93988.0,0.053259]
[1734965533717,0.053252,94001.0,93988.0,0.053259]
[1734965534127,0.36144,94006.0,93983.0,0.004]
[1734965534327,0.3608,94006.0,93983.0,0.004]
[1734965534531,0.053255,93995.0,93983.0,0.006]
[1734965535126,0.053256,93993.0,93983.0,0.006]
[1734965535330,0.053256,93993.0,93983.0,0.005]
[1734965535628,0.414694,93997.0,93983.0,0.3618]
[1734965535827,0.414054,93997.0,93988.0,0.003]
[1734965536223,0.3608,93997.0,93988.0,0.003]
[1734965536429,0.3608,93997.0,93983.0,0.001]
[1734965536430,0.053259,93988.0,93983.0,0.001]
[1734965536630,0.053261,93985.0,93983.0,0.004]
[1734965537130,0.053261,93985.0,93983.0,0.001]
[1734965537332,0.3,93985.0,93949.0,0.3608]
[1734965537529,0.3608,93973.0,93924.0,0.3608]
[1734965537833,0.3608,93951.0,93924.0,0.3608]
[1734965538028,0.3608,93951.0,93933.0,0.05329]
[1734965538331,0.3608,93951.0,93924.0,0.3608]
[1734965538332,0.3608,93951.0,93941.0,0.053286]
[1734965538722,8.298e-05,93950.0,93942.0,1.5]
[1734965539028,0.414085,93943.0,93912.0,0.016]
[1734965539231,0.3608,93932.0,93914.0,0.053301]
[1734965539430,0.053299,93918.0,93904.0,0.05342815]
[1734965539634,8.298e-05,93917.0,93908.0,0.3608]
[1734965539825,8.298e-05,93917.0,93915.0,0.0533]
[1734965540135,8.298e-05,93917.0,93916.0,0.3608]
[1734965540624,8.298e-05,93917.0,93910.0,0.20122449]
[1734965540928,8.298e-05,93917.0,93911.0,0.053302]
[1734965541133,0.00108298,93917.0,93916.0,0.3608]
[1734965541324,0.053282,93947.0,93916.0,0.3608]
[1734965541524,0.053277,93956.0,93940.0,0.25451049]
[1734965541731,0.053283,93947.0,93942.0,1.5]
[1734965542034,0.36136001,93948.0,93930.0,0.3608]
[1734965542228,0.3608,93948.0,93930.0,0.3608]
[1734965542434,0.3608,93948.0,93932.0,0.05329]
[1734965543035,0.053286,93941.0,93931.0,1.50068]
[1734965543222,0.3608,93932.0,93931.0,1.5]
[1734965543422,0.053292,93931.0,93918.0,0.053298]
[1734965543630,0.00056001,93940.0,93930.0,0.053292]
[1734965543832,0.00056001,93932.0,93910.0,0.56202449]
[1734965544128,0.00056001,93940.0,93939.0,0.053287]
[1734965544331,0.3608,93944.0,93930.0,0.002]
[1734965544535,0.053288,93936.0,93930.0,0.002]
[1734965544729,0.001,93940.0,93915.0,0.3608]
[1734965545134,0.001,93940.0,93929.0,0.053292]
[1734965545635,0.414084,93944.0,93931.0,0.003]
[1734965545838,0.3608,93944.0,93943.0,0.053285]
[1734965546038,0.001,93940.0,93935.0,0.053289]
[1734965546234,0.001,93940.0,93930.0,0.001]
[1734965546439,0.053282,93949.0,93938.0,0.053287]
[1734965546641,0.3608,93952.0,93930.0,0.001]
[1734965546642,0.3608,93952.0,93930.0,0.054292]
[1734965546829,0.053284,93944.0,93933.0,0.05329]
[1734965547230,0.3608,93952.0,93935.0,0.001]
[1734965547430,0.053282,93947.0,93937.0,0.053288]
[1734965547633,0.053288,93937.0,93935.0,0.001]
[1734965547938,0.053288,93937.0,93900.0,0.3608]
[1734965547939,0.053297,93922.0,93912.0,0.053302]
[1734965548131,0.053298,93920.0,93904.0,0.00012215]
[1734965548358,0.3608,93905.0,93904.0,0.00012215]
[1734965548731,0.6608,93905.0,93879.0,1.5]
[1734965548925,0.05332,93880.0,93879.0,1.5]
[1734965549431,0.053322,93877.0,93876.0,0.25057066]
[1734965549632,0.05343936,93877.0,93876.0,0.25057066]
[1734965549838,0.05343936,93877.0,93857.0,0.3608]
[1734965549839,0.053327,93869.0,93859.0,1.5]
[1734965550035,0.00011736,93877.0,93859.0,1.5]
[1734965550240,0.053324,93874.0,93868.0,0.053327]
[1734965550638,0.00011736,93877.0,93872.0,0.053324]
[1734965551336,0.3608,93875.0,93859.0,1.503]
[1734965551645,0.053331,93861.0,93859.0,1.5]
[1734965552137,0.053331,93861.0,93859.0,1.508]
[1734965552736,0.053337,93850.0,93836.0,0.414145]
[1734965552943,0.00012215,93849.0,93836.0,0.414145]
[1734965553130,0.00012215,93849.0,93848.0,1.50159824]
[1734965553947,0.00012215,93849.0,93848.0,1.50859824]
[1734965554243,0.00012215,93849.0,93848.0,1.51159824]
[1734965555242,0.00012215,93849.0,93848.0,1.50459824]
[1734965555445,0.00012215,93849.0,93848.0,1.51059824]
[1734965556142,0.00012215,93849.0,93848.0,1.509]
[1734965557041,0.00012215,93849.0,93848.0,1.562338]
[1734965557740,0.00012215,93849.0,93848.0,1.509]
[1734965558134,0.00012215,93849.0,93848.0,0.009]
[1734965559346,0.00012215,93849.0,93848.0,0.062338]
[1734965559543,0.00012215,93849.0,93848.0,0.423138]
[1734965559963,0.00012215,93849.0,93848.0,1.923138]
[1734965560552,0.053326,93871.0,93861.0,0.053331]
[1734965561840,0.053326,93871.0,93853.0,0.3608]
[1734965562046,0.053326,93871.0,93862.0,0.05333]
[1734965562249,0.053329,93865.0,93854.0,0.053335]
[1734965562439,0.053329,93865.0,93848.0,1.50076]
[1734965562643,0.053329,93865.0,93852.0,0.3608]
[1734965562839,0.053329,93865.0,93848.0,1.50068]
[1734965563044,0.053329,93865.0,93857.0,0.053333]
[1734965563241,0.36136001,93866.0,93854.0,0.001]
[1734965563442,0.3608,93876.0,93859.0,0.053332]
[1734965563443,0.36136001,93876.0,93859.0,0.053332]
[1734965563747,0.3608,93860.0,93854.0,0.001]
[1734965563949,0.3608,93855.0,93854.0,0.001]
[1734965564146,0.053335,93854.0,93853.0,0.003]
[1734965565156,0.053336,93853.0,93848.0,0.005]
[1734965565445,0.053338,93849.0,93848.0,0.005]
[1734965565647,0.053338,93849.0,93834.0,0.053346]
[1734965565648,0.05334,93846.0,93828.0,1.5]
[1734965565850,0.3608,93855.0,93849.0,0.053338]
[1734965566152,0.053336,93852.0,93849.0,0.053338]
[1734965566351,0.36144,93855.0,93848.0,0.005]
[1734965566557,0.3608,93855.0,93848.0,0.005]
[1734965567146,0.3608,93855.0,93849.0,0.002]
[1734965567352,0.053337,93850.0,93849.0,0.002]
[1734965567841,0.053337,93850.0,93848.0,0.005]
[1734965568151,0.053337,93850.0,93848.0,0.008]
[1734965568353,0.00064,93855.0,93849.0,0.004]
[1734965568648,0.37137232,93873.0,93849.0,0.004]
[1734965568854,0.053332,93860.0,93849.0,0.004]
[1734965569051,0.37137232,93873.0,93848.0,0.008]
[1734965569249,0.05333,93863.0,93859.0,0.053332]
[1734965569451,0.3608,93873.0,93854.0,0.053335]
[1734965569751,0.053325,93872.0,93854.0,0.053335]
[1734965569956,0.053337,93851.0,93849.0,0.002]
[1734965570151,0.053337,93851.0,93849.0,0.053338]
[1734965570454,0.053337,93851.0,93850.0,1.5]
[1734965570653,0.3608,93863.0,93857.0,0.053332]
[1734965570863,0.053331,93861.0,93860.0,0.053331]
[1734965571252,0.36136001,93863.0,93862.0,0.05333]
[1734965571458,0.00056001,93873.0,93860.0,0.3608]
[1734965571650,0.053324,93873.0,93872.0,0.3608]
[1734965574055,0.060324,93873.0,93872.0,0.3608]
[1734965574252,0.060324,93873.0,93830.0,0.31703582]
[1734965574253,0.053342,93841.0,93830.0,0.31703582]
[1734965574457,0.053354,93820.0,93819.0,0.02178969]
[1734965574759,0.414154,93820.0,93819.0,0.02178969]
[1734965575162,0.3608,93820.0,93819.0,0.02178969]
[1734965576061,0.3608,93820.0,93818.0,0.053355]
[1734965576848,0.3618,93820.0,93819.0,0.009]
[1734965577354,0.3618,93820.0,93819.0,0.062355]
[1734965577553,0.3618,93820.0,93819.0,0.053355]
[1734965577759,0.3628,93820.0,93819.0,0.053355]
[1734965577960,0.3618,93820.0,93819.0,0.053355]
[1734965578278,0.3628,93820.0,93819.0,0.062355]
[1734965578565,0.3628,93820.0,93819.0,0.067355]
[1734965578758,0.3628,93820.0,93819.0,1.567355]
[1734965581656,0.3628,93820.0,93819.0,1.514]
[1734965582663,0.15248315,93834.0,93819.0,1.92849325]
[1734965582855,0.15248315,93834.0,93833.0,0.053347]
[1734965583050,0.15248315,93835.0,93833.0,0.053347]
[1734965583251,0.05335,93828.0,93825.0,0.053351]
[1734965583559,0.3608,93830.0,93824.0,0.053352]
[1734965583759,0.05335,93828.0,93824.0,0.053352]
[1734965583972,0.3608,93830.0,93828.0,0.053349]
[1734965584160,0.001,93834.0,93833.0,0.009]
[1734965584753,0.001,93834.0,93825.0,1.5]
[1734965584754,0.001,93830.0,93825.0,1.5]
[1734965584955,0.3608,93839.0,93838.0,0.053344]
[1734965585259,0.15248315,93841.0,93826.0,0.053351]
[1734965585260,0.51328315,93841.0,93840.0,0.053343]
[1734965585658,0.51328315,93841.0,93840.0,1.553343]
[1734965585967,0.3608,93841.0,93840.0,1.553343]
[1734965586365,0.3608,93841.0,93840.0,1.5]
[1734965586958,0.001,93841.0,93840.0,1.509]
[1734965587162,0.15248315,93853.0,93852.0,0.053336]
[1734965588264,0.3608,93853.0,93852.0,0.053336]
[1734965588454,0.3608,93853.0,93852.0,0.055336]
[1734965589459,0.414136,93853.0,93852.0,0.002]
[1734965589664,0.3608,93853.0,93852.0,0.006]
[1734965589971,0.3608,93853.0,93852.0,0.059336]
[1734965590269,0.00056001,93861.0,93852.0,1.559336]
[1734965590473,0.3608,93869.0,93868.0,0.053327]
[1734965591064,0.3608,93869.0,93863.0,0.05333]
[1734965591265,0.3608,93869.0,93853.0,0.1488]
[1734965591465,0.3608,93869.0,93867.0,0.053327]
[1734965591973,0.15408319,93871.0,93870.0,0.053326]
[1734965592368,0.00160004,93871.0,93870.0,0.053326]
[1734965592571,0.00160004,93871.0,93870.0,1.553326]
[1734965592774,0.36136001,93872.0,93870.0,1.553326]
[1734965592775,0.00056001,93872.0,93870.0,1.553326]
[1734965592970,0.15248315,93878.0,93877.0,0.053322]
[1734965593364,0.18288912,93888.0,93887.0,0.053316]
[1734965593877,0.18288912,93888.0,93870.0,1.70222449]
[1734965594088,0.7216,93871.0,93870.0,0.001]
[1734965594373,0.7216,93871.0,93853.0,0.492613]
[1734965594374,0.7216,93871.0,93853.0,0.339913]
[1734965594567,0.3608,93854.0,93853.0,0.393249]
[1734965595579,0.3608,93854.0,93853.0,0.244449]
[1734965595766,0.3608,93854.0,93853.0,0.053336]
[1734965596075,0.36136001,93871.0,93870.0,0.053326]
[1734965596275,0.3608,93871.0,93870.0,0.053326]
[1734965597277,0.3608,93871.0,93870.0,0.054326]
[1734965597776,0.00159858,93888.0,93870.0,0.054326]
[1734965598069,0.36136001,93889.0,93887.0,0.053316]
[1734965598270,0.54424913,93899.0,93880.0,0.3608]
[1734965598474,0.54368912,93899.0,93897.0,0.05331]
[1734965598780,0.54368912,93899.0,93898.0,1.5]
[1734965599077,0.05332,93880.0,93870.0,0.00212]
[1734965599381,0.3608,93877.0,93876.0,0.053323]
[1734965600377,0.3608,93877.0,93870.0,0.003]
[1734965600567,0.3608,93877.0,93876.0,0.004]
[1734965601292,0.3608,93877.0,93876.0,0.006]
[1734965601869,0.3608,93877.0,93851.0,0.05493525]
[1734965602071,0.3608,93852.0,93851.0,0.00159825]
[1734965603370,0.3608,93852.0,93851.0,0.00559825]
[1734965603571,0.3608,93852.0,93851.0,0.00759825]
[1734965603976,0.3608,93856.0,93851.0,0.00759825]
[1734965604178,0.3608,93872.0,93855.0,0.3608]
[1734965604383,0.3608,93872.0,93871.0,0.053325]
[1734965604889,0.3608,93872.0,93863.0,0.3608]
[1734965605074,0.3608,93872.0,93871.0,0.053325]
[1734965605477,0.3608,93872.0,93863.0,0.3608]
[1734965605674,0.053326,93870.0,93869.0,0.053326]
[1734965606369,0.053329,93865.0,93863.0,0.3608]
[1734965606572,0.3608,93864.0,93855.0,0.3608]
[1734965606772,0.053332,93861.0,93859.0,0.053332]
[1734965608273,0.006,93870.0,93851.0,0.00159825]
[1734965608573,0.054329,93865.0,93851.0,0.00159825]
[1734965608771,0.054329,93865.0,93863.0,0.05333]
[1734965609186,0.053329,93865.0,93863.0,0.05333]
[1734965610193,0.3608,93872.0,93859.0,0.001]
[1734965610486,0.001,93865.0,93862.0,0.05333]
[1734965610681,0.053329,93864.0,93862.0,0.05333]
[1734965610876,0.053332,93860.0,93857.0,0.053333]
[1734965611081,0.053332,93860.0,93852.0,1.5]
[1734965611281,0.001,93865.0,93852.0,1.5]
[1734965611485,0.053329,93864.0,93861.0,0.053331]
[1734965611680,0.05333,93862.0,93861.0,0.053331]
[1734965611886,0.001,93865.0,93856.0,0.053334]
[1734965611887,0.002,93865.0,93856.0,0.053334]
[1734965612080,0.002,93865.0,93857.0,0.053333]
[1734965612081,0.053332,93859.0,93857.0,0.053333]
[1734965612479,0.053332,93859.0,93858.0,1.5]
[1734965613190,0.05333,93863.0,93861.0,0.05333]
[1734965613383,0.053332,93859.0,93858.0,1.50108]
[1734965613685,0.414132,93859.0,93858.0,0.001]
[1734965613986,0.6608,93859.0,93817.0,0.38200013]
[1734965614187,0.41415,93828.0,93817.0,0.38304013]
[1734965614490,0.053356,93818.0,93817.0,0.38304013]
[1734965614688,0.414156,93818.0,93817.0,0.38200013]
[1734965614886,0.414156,93818.0,93816.0,0.167]
[1734965615795,0.053361,93808.0,93800.0,0.1]
[1734965615986,0.414161,93808.0,93800.0,0.1]
[1734965616187,0.414161,93808.0,93792.0,0.03794]
[1734965616188,0.053365,93801.0,93792.0,0.03794]
[1734965616379,0.053373,93787.0,93769.0,0.053383]
[1734965616586,0.414173,93787.0,93758.0,0.3608]
[1734965616779,0.414173,93787.0,93761.0,0.3608]
[1734965617174,0.36090529,93787.0,93775.0,0.3608]
[1734965617481,0.36090529,93787.0,93786.0,0.05497336]
[1734965618589,0.00010529,93787.0,93786.0,0.05497336]
[1734965618783,0.00010529,93787.0,93786.0,1.55497336]
[1734965618988,0.00110529,93787.0,93786.0,1.55997336]
[1734965619285,0.00210529,93787.0,93786.0,1.92977336]
[1734965619488,0.00210529,93787.0,93786.0,1.56897336]
[1734965620181,0.00210529,93787.0,93786.0,1.92977336]
[1734965620582,0.00210529,93787.0,93786.0,1.56897336]
[1734965621084,0.00210529,93787.0,93786.0,1.51559936]
[1734965621085,0.05547829,93787.0,93786.0,1.51559936]
[1734965622274,0.00210529,93787.0,93786.0,0.01559936]
[1734965622988,0.00210529,93787.0,93786.0,0.06897336]
[1734965623689,0.00210529,93787.0,93786.0,1.56897336]
[1734965625083,0.00210529,93787.0,93786.0,1.92977336]
[1734965625386,0.41627829,93787.0,93786.0,0.01559936]
[1734965626284,0.71627829,93787.0,93786.0,3.6e-07]
[1734965626685,0.716173,93787.0,93786.0,3.6e-07]
[1734965627682,0.41627829,93787.0,93786.0,3.6e-07]
[1734965628082,0.41627829,93787.0,93752.0,0.3608]
[1734965628083,0.053379,93777.0,93752.0,0.3608]
[1734965628287,0.3608,93769.0,93745.0,0.3608]
[1734965628489,0.3608,93769.0,93767.0,0.053384]
[1734965628687,0.00010529,93776.0,93775.0,0.05338]
[1734965629487,0.00010529,93776.0,93775.0,1.55338]
[1734965629886,0.00110529,93776.0,93775.0,1.55338]
[1734965630081,0.00210529,93776.0,93775.0,1.55338]
[1734965630476,0.00210529,93776.0,93775.0,0.05338]
[1734965630889,0.00210529,93776.0,93760.0,0.5151]
[1734965631081,0.053382,93772.0,93767.0,0.053384]
[1734965631681,0.00210529,93776.0,93767.0,0.053384]
[1734965631878,0.053382,93771.0,93769.0,0.053383]
[1734965632084,0.053385,93767.0,93766.0,0.053385]
[1734965632279,0.053386,93765.0,93760.0,0.007]
[1734965632491,0.36136001,93770.0,93760.0,0.007]
[1734965632492,0.053387,93764.0,93760.0,0.060388]
[1734965632682,0.053387,93764.0,93760.0,0.007]
[1734965632881,0.052387,93764.0,93762.0,0.053387]
[1734965633082,0.046387,93764.0,93762.0,0.053387]
[1734965633291,0.3608,93770.0,93762.0,0.3608]